bitfinex/quotes_ETHUSD_20250106
["timestamp","ask_amount","ask_price","bid_price","bid_amount"]
[1736177669462,1.40373394,3699.1,3698.6,0.02703417]
[1736177669763,1.40373394,3699.1,3698.6,0.18408559]
[1736177669965,1.40373394,3699.1,3698.6,0.15705142]
[1736177670192,1.40373394,3699.1,3698.7,0.027034]
[1736177670467,2.33955657,3699.1,3698.5,1.3995]
[1736177671266,2.70351,3698.9,3698.5,1.3995]
[1736177671444,1.13175828,3699.0,3698.5,1.3995]
[1736177672132,2.51400133,3699.0,3698.2,0.162]
[1736177672683,2.70365,3698.7,3698.2,0.162]
[1736177672986,2.71102,3698.9,3698.2,0.162]
[1736177673295,2.06758091,3699.0,3698.2,0.162]
[1736177673430,2.09462396,3699.0,3698.2,0.162]
[1736177673627,0.93582263,3698.6,3698.2,0.162]
[1736177673865,0.93582263,3698.6,3698.3,0.430224]
[1736177674338,0.93582263,3698.6,3698.2,0.162]
[1736177674537,0.93582263,3698.7,3698.3,0.02703621]
[1736177675793,0.93582263,3698.7,3698.2,0.162]
[1736177676292,0.96286568,3698.7,3698.1,1.4361]
[1736177676449,3.66652568,3698.7,3698.1,1.4361]
[1736177676854,2.70372,3698.6,3698.1,1.4361]
[1736177677371,2.70372,3698.6,3697.8,0.162]
[1736177677372,0.0075,3698.4,3697.6,1.4329]
[1736177677598,2.70417,3698.0,3697.6,1.4329]
[1736177677940,0.0075,3698.2,3697.2,1.4329]
[1736177678140,0.0075,3697.4,3697.0,1.10783537]
[1736177678380,2.71232,3697.1,3697.0,1.10783537]
[1736177678532,5.27852249,3697.1,3697.0,1.10783537]
[1736177678934,6.75382249,3697.1,3697.0,1.10783537]
[1736177679140,1.4753,3696.7,3695.8,1.12126252]
[1736177679394,0.0075,3696.2,3695.8,1.12126252]
[1736177679736,1.50234305,3696.7,3695.9,1.4579]
[1736177679986,2.73220305,3696.7,3696.0,0.42881137]
[1736177680184,0.0075,3696.6,3696.0,0.42881137]
[1736177680481,0.0075,3696.6,3696.0,0.45586559]
[1736177680636,2.34104811,3696.1,3696.0,0.42881137]
[1736177680837,2.34104811,3696.1,3695.9,1.4579]
[1736177681639,2.34104811,3696.1,3695.4,0.162]
[1736177681840,2.73253305,3696.2,3695.4,0.162]
[1736177682376,1.12954579,3696.4,3695.5,0.02705615]
[1736177682678,1.12954579,3696.4,3695.5,0.1639199]
[1736177682840,1.15658884,3696.4,3695.5,0.1639199]
[1736177683044,1.12954579,3696.4,3695.5,0.1639199]
[1736177683292,1.12954579,3696.4,3695.5,2.8698899]
[1736177683441,1.12954579,3696.4,3695.6,2.56620249]
[1736177683776,1.12954579,3696.4,3696.0,1.4548]
[1736177683986,1.12954579,3696.7,3696.0,1.4548]
[1736177684197,0.02704305,3696.6,3696.0,1.4548]
[1736177684639,2.70584,3695.8,3694.6,2.70663]
[1736177684836,2.70584,3695.8,3694.6,0.0270606]
[1736177684837,0.0075,3695.4,3694.6,0.0270606]
[1736177685241,0.0075,3695.4,3694.5,1.4176]
[1736177685540,2.7061,3695.4,3694.5,1.4176]
[1736177685736,0.02704305,3695.3,3694.5,1.4176]
[1736177685976,2.7061,3695.4,3694.5,1.55936]
[1736177686858,0.0075,3694.9,3694.5,1.4176]
[1736177687055,0.03454305,3694.9,3694.5,1.4176]
[1736177688241,2.60074554,3694.9,3693.9,0.162]
[1736177688442,2.7065,3694.8,3693.9,0.18906889]
[1736177688649,0.0075,3694.6,3693.9,0.162]
[1736177688845,0.0075,3694.6,3693.9,0.18906889]
[1736177689090,0.0075,3694.6,3693.9,0.02706889]
[1736177689289,0.0075,3694.6,3693.8,1.4503]
[1736177689442,2.71419,3694.6,3693.8,1.4503]
[1736177689645,0.02704305,3694.5,3693.8,1.4503]
[1736177690300,0.0075,3694.7,3693.8,1.59803689]
[1736177690448,0.0075,3694.7,3693.8,1.62510586]
[1736177690948,0.03454305,3694.7,3693.8,1.62510586]
[1736177691380,1.4053,3695.5,3694.0,2.56620249]
[1736177691599,0.02704305,3695.4,3694.6,1.3721]
[1736177691784,0.0075,3695.3,3694.6,1.3721]
[1736177692256,0.0075,3695.3,3694.3,1.3721]
[1736177692461,0.0075,3695.3,3694.3,4.07896]
[1736177692956,2.56620249,3695.7,3694.3,4.07896]
[1736177692957,2.50014579,3695.8,3694.9,2.70641]
[1736177693156,1.15658884,3695.8,3695.0,1.40375963]
[1736177693485,2.59324554,3695.7,3695.0,0.24833105]
[1736177693650,0.02704305,3695.7,3695.0,0.24833105]
[1736177693854,0.0075,3695.6,3695.0,0.24833105]
[1736177694447,0.03454305,3695.9,3694.8,0.02706177]
[1736177694650,0.02704305,3695.9,3695.1,2.70622]
[1736177694890,1.3706,3696.2,3695.3,2.70612]
[1736177695086,0.02704305,3696.5,3695.3,2.70612]
[1736177695293,0.0075,3696.4,3695.4,0.02705651]
[1736177695589,0.0075,3696.4,3695.3,2.70612]
[1736177695884,0.0075,3696.2,3695.2,0.270622]
[1736177696089,0.03454305,3696.2,3695.3,0.3138882]
[1736177696246,0.02704305,3696.5,3695.4,0.02705799]
[1736177696804,0.0075,3696.4,3695.4,2.73305799]
[1736177697011,0.0075,3696.4,3695.5,2.70599]
[1736177697153,0.0075,3696.4,3695.6,2.73295653]
[1736177697355,0.02704305,3696.5,3695.7,2.70584]
[1736177697555,2.70505,3696.8,3695.7,2.70584]
[1736177697556,0.02704305,3696.8,3695.9,1.3611]
[1736177697750,1.3627,3697.2,3696.3,2.70533]
[1736177698001,0.02704305,3697.3,3696.6,1.3611]
[1736177698974,0.02704305,3697.4,3696.6,1.3611]
[1736177699146,0.03454305,3697.4,3696.6,1.3611]
[1736177699781,1.3627,3697.6,3696.7,2.73212868]
[1736177700187,0.02704305,3697.5,3696.7,2.70508]
[1736177700487,0.02704305,3697.5,3696.6,1.3611]
[1736177700793,0.0075,3697.4,3696.6,1.3611]
[1736177701390,0.02704305,3697.6,3696.6,1.3611]
[1736177701551,0.0075,3697.5,3696.7,2.70511]
[1736177701752,0.0075,3697.5,3696.8,0.02704619]
[1736177701974,0.0075,3697.5,3696.6,1.767746]
[1736177702173,0.0075,3697.5,3696.7,0.02704817]
[1736177702666,0.02704305,3697.6,3696.8,2.70502]
[1736177702917,2.73898305,3697.7,3696.6,1.3611]
[1736177703168,0.0075,3697.6,3696.6,1.3611]
[1736177703593,0.0075,3697.6,3696.7,0.02704818]
[1736177703811,0.02704305,3697.6,3696.7,2.70511]
[1736177703954,0.02704305,3697.9,3696.7,2.70511]
[1736177704154,0.0075,3697.8,3696.7,0.02704636]
[1736177704365,1.3615,3698.0,3697.2,2.70471]
[1736177704714,1.12954579,3698.1,3696.8,0.15501464]
[1736177704715,1.12954579,3698.1,3697.4,1.4962]
[1736177705004,1.12954579,3698.1,3697.5,2.73155217]
[1736177705207,1.12954579,3698.1,3697.5,2.70451]
[1736177705351,1.12954579,3698.1,3697.5,2.73155197]
[1736177705551,0.02704305,3698.2,3697.5,2.73155197]
[1736177705748,1.437,3698.4,3697.5,2.73155197]
[1736177705749,1.46404305,3698.4,3697.5,0.44981717]
[1736177705947,1.46404305,3698.4,3697.5,0.02704197]
[1736177706148,1.12954579,3698.5,3697.5,0.02704197]
[1736177706394,1.12954579,3698.5,3698.1,2.70403]
[1736177706689,1.12954579,3698.5,3698.1,4.14223]
[1736177706907,0.0075,3698.8,3698.1,4.14223]
[1736177707057,0.02704305,3698.9,3698.1,4.14223]
[1736177707255,2.54768884,3699.1,3698.2,0.02703782]
[1736177707596,0.03454305,3699.0,3697.4,1.3828]
[1736177707914,0.03454305,3699.0,3697.5,2.70453]
[1736177708092,0.03454305,3699.0,3698.0,2.70414]
[1736177708409,0.03454305,3699.0,3698.1,2.70406]
[1736177708771,0.03454305,3699.0,3697.6,1.3828]
[1736177708956,0.0075,3699.0,3698.4,2.70384]
[1736177709156,2.51054579,3699.5,3698.5,0.02703652]
[1736177709419,0.02704305,3699.4,3698.7,2.70358]
[1736177709755,0.02704305,3699.4,3698.5,2.70378]
[1736177710270,0.02704305,3699.4,3698.4,1.4044]
[1736177710485,0.0075,3699.3,3698.4,1.4044]
[1736177710885,2.7035,3698.9,3697.8,1.4019]
[1736177711084,1.4687,3699.2,3697.4,1.4019]
[1736177711085,4.17992,3698.7,3697.4,1.4019]
[1736177711294,0.02704305,3698.6,3697.6,2.70442]
[1736177711483,0.02704305,3698.6,3697.4,1.4019]
[1736177711670,0.02704305,3698.6,3697.8,2.70429]
[1736177711891,0.02704305,3698.6,3697.6,2.70444]
[1736177712688,2.7113,3698.5,3697.4,0.162]
[1736177712977,0.0075,3698.3,3697.1,4.10665]
[1736177713186,1.3883,3697.6,3696.6,4.33748]
[1736177713386,0.03454305,3697.5,3696.4,2.70533]
[1736177713686,2.73908305,3697.5,3696.5,3.0]
[1736177713887,0.3883,3697.6,3696.6,1.4703]
[1736177714308,0.3883,3697.6,3697.0,2.70489]
[1736177714690,0.3883,3697.6,3697.1,2.73185497]
[1736177714890,0.3883,3697.6,3697.1,2.70481]
[1736177715328,0.3883,3697.6,3696.6,4.17544]
[1736177715329,0.3883,3697.6,3696.9,2.70494]
[1736177715694,0.3883,3697.6,3697.0,2.70489]
[1736177716028,0.3883,3697.6,3697.0,2.70484]
[1736177716799,0.3883,3697.6,3697.1,2.70476]
[1736177717332,0.3883,3697.6,3697.2,2.70472]
[1736177717962,0.3883,3697.6,3696.6,1.4703]
[1736177718131,0.3883,3697.6,3696.9,2.70489]
[1736177718493,0.3883,3697.6,3697.0,2.70489]
[1736177719722,0.0075,3697.3,3696.3,2.70539]
[1736177719921,0.03454305,3697.3,3696.2,4.01927702]
[1736177720138,0.03454305,3697.3,3696.5,2.70524]
[1736177720297,0.03454305,3697.3,3696.3,2.70539]
[1736177720498,0.03454305,3697.3,3696.3,3.6646127]
[1736177720748,0.03454305,3697.3,3696.2,4.31815]
[1736177720958,0.0075,3697.1,3695.6,2.56857702]
[1736177721251,1.3731,3696.7,3695.5,9.032]
[1736177721399,0.02704305,3696.6,3695.6,2.70585]
[1736177722262,0.0075,3696.5,3695.1,0.162]
[1736177722399,0.0075,3696.2,3695.2,2.9792577]
[1736177722598,1.4981,3696.4,3695.5,2.70598]
[1736177722855,1.4981,3696.8,3695.9,2.56857702]
[1736177723001,1.4199,3697.4,3695.9,2.56857702]
[1736177723200,1.12954579,3697.2,3696.3,2.70538]
[1736177723401,0.02704305,3697.1,3696.4,2.70532]
[1736177723808,1.15658884,3697.2,3696.4,2.70532]
[1736177724009,0.02704305,3697.2,3696.5,0.02704906]
[1736177724202,0.02704305,3697.2,3696.3,2.7054]
[1736177724530,0.02704305,3697.2,3695.9,2.56857702]
[1736177724531,0.0075,3697.1,3696.0,0.02704907]
[1736177724749,0.0075,3697.1,3696.1,2.70555]
[1736177725159,0.02704305,3697.2,3696.3,2.7054]
[1736177725319,0.02704305,3697.2,3696.5,2.70524]
[1736177725650,0.02704305,3697.2,3696.3,2.7054]
[1736177725937,0.0075,3697.1,3696.0,0.39635261]
[1736177726136,0.0075,3696.7,3695.8,2.70574]
[1736177726302,1.51374305,3697.0,3696.0,2.70555]
[1736177726497,0.0075,3696.9,3695.9,0.407364]
[1736177726903,1.51374305,3697.0,3696.3,2.70539]
[1736177727131,1.4867,3697.0,3696.5,2.70525]
[1736177727719,1.4867,3697.0,3696.0,2.70558]
[1736177727920,1.4867,3697.0,3696.4,2.70532]
[1736177728741,1.4867,3697.0,3696.5,0.02704938]
[1736177729357,1.4834,3697.4,3696.6,2.70516]
[1736177729560,0.0075,3697.2,3696.2,2.70547]
[1736177729858,0.03454305,3697.2,3696.5,2.70525]
[1736177730076,0.03454305,3697.2,3696.4,1.3974]
[1736177730874,0.03454305,3697.2,3696.2,0.9599707]
[1736177731091,2.70506,3696.8,3695.5,1.3974]
[1736177731286,1.42194305,3696.7,3695.8,0.162]
[1736177731925,1.42194305,3696.7,3695.9,2.70567]
[1736177732137,1.3874,3696.7,3696.1,2.70548]
[1736177732327,0.07188229,3696.6,3695.8,0.162]
[1736177732558,1.3874,3696.7,3695.9,2.59562886]
[1736177732763,1.3874,3697.1,3696.2,2.56857702]
[1736177732923,1.12954579,3697.3,3696.8,2.56857702]
[1736177733136,1.12954579,3697.3,3697.0,2.70483]
[1736177733476,1.12954579,3697.3,3697.1,0.49856747]
[1736177733634,1.12954579,3697.3,3696.7,0.162]
[1736177733847,0.02704305,3697.2,3696.7,0.162]
[1736177734045,0.0075,3697.1,3696.3,1.3974]
[1736177734233,0.0075,3697.1,3696.4,0.162]
[1736177734464,0.0075,3697.3,3696.4,0.162]
[1736177734645,2.71223,3697.3,3696.4,0.162]
[1736177734854,1.4785,3697.0,3696.4,0.162]
[1736177735077,0.03454305,3696.9,3696.4,0.162]
[1736177735376,0.03454305,3696.9,3695.8,2.70573]
[1736177735673,0.0075,3696.7,3695.8,2.70573]
[1736177735900,0.03454305,3696.7,3695.9,0.286773]
[1736177736039,0.0075,3696.5,3695.9,0.286773]
[1736177736242,0.03454305,3696.5,3695.6,0.162]
[1736177736476,0.06853466,3696.4,3695.6,0.162]
[1736177736854,1.4624,3696.3,3695.6,0.162]
[1736177737177,0.09491992,3696.2,3695.6,0.162]
[1736177737580,0.0075,3696.1,3695.6,0.162]
[1736177737880,0.0653856,3696.0,3695.6,0.162]
[1736177738070,0.09242865,3696.0,3695.6,0.162]
[1736177738576,0.09242865,3696.0,3695.2,0.2730577]
[1736177739045,0.0653856,3696.0,3695.2,0.4350577]
[1736177739358,0.02704305,3695.9,3695.2,0.4350577]
[1736177739554,1.47493151,3695.8,3694.1,1.3888]
[1736177739755,1.47493151,3695.8,3694.6,2.70662]
[1736177739756,2.71343,3695.6,3694.6,2.70662]
[1736177740094,0.06525037,3695.5,3695.0,2.56857702]
[1736177740256,2.77124037,3695.5,3694.5,1.5044]
[1736177740449,2.77124037,3695.5,3695.4,35.0]
[1736177740450,2.70599,3695.5,3695.4,35.0]
[1736177741206,4.18529,3695.5,3695.4,35.0]
[1736177741913,5.11932249,3695.5,3695.4,35.0]
[1736177742118,5.11932249,3695.5,3693.9,0.162]
[1736177742119,2.70616,3695.3,3694.1,2.56857702]
[1736177742319,0.02704305,3695.2,3694.2,2.70693]
[1736177742491,2.73325305,3695.2,3694.1,2.56857702]
[1736177742697,2.73325305,3695.2,3694.2,0.2730577]
[1736177742905,0.0075,3695.0,3694.2,0.2730577]
[1736177743107,0.02704305,3695.0,3694.9,35.0]
[1736177743421,5.67476688,3695.5,3694.9,35.0]
[1736177743627,5.67476688,3695.5,3695.0,2.71757592]
[1736177743779,0.0075,3695.3,3694.4,2.56857702]
[1736177743983,0.0075,3695.3,3694.2,3.1419777]
[1736177744295,4.09554,3695.3,3695.2,35.0]
[1736177744494,1.3819,3695.3,3695.2,35.0]
[1736177745420,1.3892,3695.6,3694.4,2.73057702]
[1736177745581,1.15525231,3695.9,3695.0,2.70633]
[1736177745781,0.0075,3695.8,3695.1,0.0270599]
[1736177745986,0.02704305,3695.7,3694.8,2.70648]
[1736177746326,0.0075,3695.6,3694.5,3.44010347]
[1736177746622,0.0075,3695.6,3695.5,35.0]
[1736177746782,0.0075,3695.8,3695.5,35.0]
[1736177746985,0.0075,3695.6,3694.6,2.70658]
[1736177747189,0.05505458,3695.5,3694.5,3.44010347]
[1736177747546,1.4259,3695.3,3694.5,0.44010347]
[1736177747743,0.05505458,3695.5,3694.7,2.56857702]
[1736177747886,0.05497343,3695.2,3695.1,2.70628]
[1736177748225,1.4259,3696.1,3695.1,35.0]
[1736177748410,1.12820926,3696.2,3695.4,1.3948]
[1736177748898,0.02704305,3696.3,3695.5,2.70598]
[1736177749094,0.02704305,3696.3,3696.2,35.0]
[1736177749294,1.12820926,3696.4,3696.2,35.0]
[1736177749630,1.12820926,3696.4,3695.6,2.97865502]
[1736177749788,1.12820926,3696.4,3696.2,1.4665]
[1736177749983,1.12820926,3696.4,3695.9,2.56857702]
[1736177749984,1.12820926,3696.4,3695.8,1.4665]
[1736177750188,1.12820926,3696.4,3696.3,35.0]
[1736177750428,0.02704305,3696.9,3696.3,35.0]
[1736177750723,2.55550926,3697.1,3696.4,0.02705106]
[1736177750925,1.12820926,3697.1,3696.5,4.03507702]
[1736177751081,1.12820926,3697.1,3697.0,35.0]
[1736177751696,4.2566957,3697.6,3697.0,35.0]
[1736177751888,1.4273,3697.6,3697.0,2.71757592]
[1736177752087,1.4273,3697.6,3697.1,0.0270464]
[1736177752282,1.12820926,3697.7,3697.5,35.0]
[1736177752685,1.12820926,3697.7,3696.9,2.70491]
[1736177753027,0.2465029,3697.8,3697.1,2.7048]
[1736177753234,0.21945985,3697.8,3697.7,37.70438]
[1736177753389,0.21945985,3697.8,3697.7,37.71757592]
[1736177753585,0.21945985,3697.8,3697.7,35.0]
[1736177759594,1.67284243,3697.8,3697.7,35.0]
[1736177759820,1.66534243,3697.8,3697.7,35.0]
[1736177760436,0.21945985,3697.8,3697.7,35.0]
[1736177763946,0.21945985,3697.8,3697.7,39.13708]
[1736177764116,0.21945985,3697.8,3697.7,41.85465592]
[1736177764301,0.21945985,3697.8,3697.7,42.01565592]
[1736177768350,0.21945985,3697.8,3697.7,41.85465592]
[1736177768548,0.21945985,3697.8,3697.7,42.01565592]
[1736177771048,0.21945985,3697.8,3697.7,35.0]
[1736177772308,1.71125985,3697.8,3697.7,35.0]
[1736177772515,4.41556985,3697.8,3697.7,35.0]
[1736177772807,4.47368643,3697.8,3697.7,35.0]
[1736177773623,1.76937643,3697.8,3697.7,35.0]
[1736177773807,0.27757643,3697.8,3696.7,2.56869856]
[1736177774039,0.27757643,3697.8,3696.8,0.44316362]
[1736177774416,0.27757643,3697.8,3697.5,2.70448]
[1736177774618,0.21945985,3697.8,3697.5,2.70448]
[1736177774818,0.21945985,3697.8,3697.7,35.0]
[1736177776053,0.21945985,3697.8,3697.7,37.70438]
[1736177779387,0.21945985,3697.8,3697.7,40.42195592]
[1736177782433,0.21945985,3697.8,3697.7,43.42195592]
[1736177785758,1.451,3699.3,3698.9,2.70346]
[1736177786164,0.08407456,3699.2,3698.7,2.70362]
[1736177786330,0.08407456,3699.2,3699.1,35.0]
[1736177786529,0.05703151,3699.2,3699.1,35.0]
[1736177786842,1.451,3699.3,3699.1,35.0]
[1736177787027,1.451,3699.3,3698.3,5.7039]
[1736177787028,0.03454305,3699.2,3698.5,2.70373]
[1736177787227,0.05688695,3699.1,3698.5,0.840773]
[1736177787427,0.03454305,3699.2,3699.0,35.0]
[1736177787928,0.03454305,3699.2,3698.7,2.70362]
[1736177788334,0.05686465,3699.1,3698.7,2.70362]
[1736177788941,0.05686465,3699.1,3699.0,35.0]
[1736177789263,0.03454305,3699.2,3699.0,35.0]
[1736177789438,0.03454305,3699.2,3697.7,2.71757592]
[1736177789631,0.03454305,3699.2,3698.2,2.704]
[1736177789826,0.0075,3699.0,3697.6,1.4239]
[1736177790091,2.71112,3698.8,3697.8,2.70426]
[1736177790295,1.4645,3698.5,3697.8,2.70426]
[1736177790563,1.4645,3698.5,3697.9,2.70423]
[1736177790564,0.0075,3698.4,3697.9,2.70423]
[1736177790725,0.06449477,3698.4,3697.9,2.70423]
[1736177790927,0.06449477,3698.4,3698.3,35.0]
[1736177791227,0.0075,3698.4,3698.3,35.0]
[1736177791666,0.03454305,3698.4,3698.3,35.0]
[1736177791965,0.09145539,3698.4,3698.3,35.0]
[1736177792128,0.09145539,3698.4,3697.5,2.7045]
[1736177792626,0.09145539,3698.4,3697.6,2.70445]
[1736177792942,0.99724627,3698.4,3697.8,2.7043]
[1736177793242,0.98974627,3698.4,3698.3,35.0]
[1736177793647,0.93283393,3698.4,3698.3,35.0]
[1736177794010,1.12820926,3698.7,3698.3,37.70394]
[1736177794289,1.12820926,3698.7,3698.3,2.70394]
[1736177794493,1.15525231,3698.7,3698.3,2.70394]
[1736177794632,0.05310172,3698.6,3698.3,2.70394]
[1736177794829,0.05310172,3698.6,3698.1,2.70408]
[1736177795627,0.03454305,3698.5,3697.8,2.70425]
[1736177795851,0.05305228,3698.4,3697.7,0.161]
[1736177796040,0.05305228,3698.4,3697.9,2.70421]
[1736177796863,0.05305228,3698.4,3697.7,0.1880408]
[1736177797272,1.12820926,3698.4,3698.3,2.70394]
[1736177797742,1.18138183,3698.4,3698.0,2.7041]
[1736177798141,1.18138183,3698.4,3698.0,0.161]
[1736177798346,0.05317257,3698.4,3698.0,0.161]
[1736177798876,0.0075,3698.2,3697.1,10.2725]
[1736177799027,0.0075,3697.7,3696.7,3.97119856]
[1736177799228,1.55408968,3697.6,3696.8,0.161]
[1736177799433,0.02704305,3697.5,3696.8,0.161]
[1736177799632,0.05274565,3697.4,3696.8,0.161]
[1736177799881,0.05274565,3697.4,3696.8,3.13899986]
[1736177800252,0.02704305,3697.5,3696.8,3.13899986]
[1736177800460,0.02704305,3697.5,3696.9,2.70495]
[1736177800461,0.05251923,3697.3,3696.9,2.70495]
[1736177800697,0.02704305,3697.5,3696.9,2.70495]
[1736177800972,0.05248223,3697.2,3696.9,2.70495]
[1736177801146,0.02704305,3697.5,3696.9,2.70495]
[1736177801534,0.0524543,3697.4,3696.9,2.70495]
[1736177801729,0.0524543,3697.4,3696.8,0.43396986]
[1736177801928,0.0524543,3697.4,3696.9,0.30026684]
[1736177802169,0.0524543,3697.4,3697.2,2.70473]
[1736177802670,0.0524543,3697.4,3697.3,2.70467]
[1736177803169,0.02704305,3697.6,3697.0,2.70483]
[1736177803469,0.05247095,3697.5,3697.1,0.02704531]
[1736177803670,1.13213469,3697.7,3697.4,2.7046]
[1736177803989,1.69820204,3697.8,3697.6,2.70439]
[1736177803990,1.13213469,3697.8,3697.6,2.70439]
[1736177804669,1.13213469,3697.8,3697.7,2.70438]
[1736177805295,2.06793482,3698.2,3697.7,2.70438]
[1736177805655,2.06793482,3698.2,3698.1,2.70409]
[1736177805858,2.06793482,3698.2,3697.6,5.27314856]
[1736177806066,2.06793482,3698.2,3697.9,2.7042]
[1736177806693,2.06793482,3698.5,3697.9,2.7042]
[1736177807021,2.09497787,3698.5,3697.9,2.7042]
[1736177807718,1.40374925,3698.4,3697.9,2.7042]
[1736177808058,1.40374925,3698.4,3697.4,0.161]
[1736177808059,0.0075,3698.1,3697.4,0.161]
[1736177808255,0.0075,3697.7,3697.4,0.161]
[1736177808496,0.03454305,3697.7,3697.4,0.161]
[1736177808702,0.05086348,3697.6,3697.4,0.161]
[1736177809290,0.05086348,3697.6,3696.6,4.22033]
[1736177809291,0.0075,3697.5,3696.6,1.5152]
[1736177809613,0.03454305,3697.5,3696.7,0.161]
[1736177809981,1.5107,3697.3,3696.5,2.70524]
[1736177810301,2.70498,3696.9,3696.0,1.11654504]
[1736177810599,0.0075,3696.7,3696.0,1.11654504]
[1736177810763,0.0075,3696.7,3696.0,3.82211504]
[1736177810968,0.0075,3696.5,3696.0,3.82211504]
[1736177811186,0.03454305,3696.5,3696.0,1.11654504]
[1736177811523,0.04984187,3696.4,3696.0,1.11654504]
[1736177811736,0.04984187,3696.4,3696.0,1.94192563]
[1736177811868,3.47182004,3696.8,3696.3,2.56869856]
[1736177812088,3.47182004,3696.8,3696.7,2.70511]
[1736177812538,3.47182004,3696.8,3696.7,5.70511]
[1736177812697,3.47182004,3696.8,3696.7,7.09981]
[1736177812885,1.13213469,3697.7,3696.7,8.33718786]
[1736177813084,1.13213469,3697.7,3697.6,2.70445]
[1736177813324,1.13213469,3697.7,3697.6,2.86545]
[1736177814027,1.3976,3698.3,3697.6,2.86545]
[1736177814222,1.13213469,3698.4,3698.0,2.70409]
[1736177814921,0.0075,3698.3,3697.6,0.161]
[1736177815088,0.0075,3698.3,3697.6,2.86542]
[1736177815089,0.03454305,3698.3,3697.6,2.86542]
[1736177815283,0.0075,3698.1,3697.6,0.161]
[1736177815513,0.03454305,3698.1,3697.0,1.4116]
[1736177815754,0.0075,3697.9,3697.1,3.2123373]
[1736177815917,0.03454305,3697.9,3697.1,3.2123373]
[1736177816408,0.05044697,3697.8,3697.1,2.8658]
[1736177816813,0.05044697,3697.8,3697.1,2.7048]
[1736177817425,0.05044697,3697.8,3697.0,0.161]
[1736177817723,0.0075,3697.6,3697.0,0.161]
[1736177818097,0.05042476,3697.5,3697.0,0.161]
[1736177818422,0.07746781,3697.5,3697.0,0.161]
[1736177818588,0.05042476,3697.5,3697.0,0.161]
[1736177818784,0.05042476,3697.5,3697.0,2.86582]
[1736177818990,0.05042476,3697.5,3697.1,2.7048]
[1736177819225,0.02704305,3697.6,3697.0,0.161]
[1736177819605,0.05052548,3697.5,3697.0,2.86589]
[1736177820133,0.05052548,3697.5,3697.0,0.161]
[1736177820337,2.58077774,3697.7,3697.1,0.02704544]
[1736177820632,0.05045978,3697.4,3697.0,0.161]
[1736177820816,0.03454305,3697.6,3697.0,0.161]
[1736177821019,0.0503568,3697.3,3696.3,2.56869856]
[1736177821328,1.5747494,3697.2,3696.4,0.161]
[1736177821527,0.02704305,3697.1,3696.3,2.56869856]
[1736177821738,0.0075,3696.8,3695.4,3.13051756]
[1736177821945,2.70536,3696.4,3695.5,0.161]
[1736177822094,0.0075,3696.6,3695.5,0.161]
[1736177822095,0.02704305,3696.3,3695.6,2.59575462]
[1736177822429,1.4132,3696.3,3695.5,0.161]
[1736177822597,0.02704305,3696.2,3695.5,0.161]
[1736177822797,0.04986693,3696.2,3695.6,2.7059]
[1736177823036,0.02704305,3696.2,3695.7,2.70578]
[1736177823345,1.52674989,3696.1,3695.4,1.11654504]
[1736177823516,1.52674989,3696.1,3695.2,1.67481756]
[1736177823517,0.03454305,3696.0,3695.2,2.56869856]
[1736177823719,0.02704305,3696.0,3695.5,2.70593]
[1736177823910,0.0490023,3695.9,3695.5,2.70593]
[1736177824114,0.02704305,3696.0,3695.5,2.70593]
[1736177824419,0.04851272,3695.8,3695.5,2.70593]
[1736177824622,0.0075,3695.8,3694.9,3.38062956]
[1736177824954,0.0075,3695.8,3694.9,3.518291]
[1736177824955,1.4497,3695.7,3694.9,3.518291]
[1736177825099,1.49867492,3695.7,3695.0,0.0270624]
[1736177825462,1.49867492,3695.7,3695.2,2.7062]
[1736177825780,1.49867492,3695.7,3694.9,3.83249092]
[1736177825905,0.04897492,3695.7,3695.4,2.70606]
[1736177826091,0.0075,3696.0,3695.4,0.161]
[1736177826308,4.19081652,3695.6,3694.9,0.6389934]
[1736177826592,0.03383145,3695.5,3694.9,0.6389934]
[1736177826833,0.0075,3695.4,3694.9,0.6389934]
[1736177827131,0.0075,3695.2,3694.9,0.6389934]
[1736177827364,0.04133124,3695.2,3694.9,0.6389934]
[1736177827494,0.0075,3695.0,3694.9,0.6389934]
[1736177827694,0.04133383,3695.0,3694.9,0.6389934]
[1736177828005,0.08815234,3695.0,3694.9,0.6389934]
[1736177828722,2.79450234,3695.0,3694.9,0.6389934]
[1736177828923,0.08815234,3695.0,3694.9,0.6389934]
[1736177829232,0.08815388,3695.0,3694.9,0.6389934]
[1736177831255,0.05431851,3695.0,3694.9,0.6389934]
[1736177831917,0.05431851,3695.0,3694.5,2.7067]
[1736177832116,0.04681851,3695.0,3694.9,2.70643]
[1736177832425,1.13213469,3695.9,3695.0,2.70635]
[1736177832630,1.4665,3696.0,3695.1,1.77092923]
[1736177832830,0.04133142,3695.8,3695.5,2.70599]
[1736177833040,0.04167631,3695.9,3695.1,1.7573897]
[1736177833213,0.04156342,3695.7,3695.2,2.70621]
[1736177833411,1.4665,3696.0,3695.1,1.7573897]
[1736177833412,0.04159046,3695.8,3695.3,0.01353761]
[1736177833616,1.5123,3696.5,3695.5,3.0387226]
[1736177833918,0.03381767,3696.4,3695.8,2.70571]
[1736177834279,0.04077917,3696.4,3695.6,0.1745299]
[1736177834615,0.04077917,3696.4,3695.8,2.70576]
[1736177834841,1.5123,3696.5,3695.8,2.70576]
[1736177835054,0.04079251,3696.3,3695.9,0.286676]
[1736177835365,0.03381784,3696.4,3695.9,0.286676]
[1736177836061,1.5123,3696.5,3695.9,0.30020624]
[1736177836262,1.5123,3696.5,3695.9,3.00589624]
[1736177837161,0.03381785,3696.8,3695.9,1.81940624]
[1736177837333,0.03704547,3696.4,3696.3,2.7054]
[1736177837659,1.4955,3696.9,3696.1,2.70553]
[1736177837834,1.4955,3696.9,3695.9,1.805876]
[1736177837835,1.4955,3696.9,3696.2,2.70547]
[1736177838026,1.4955,3696.9,3696.3,2.70539]
[1736177838222,0.03731046,3696.8,3696.4,2.70531]
[1736177838524,0.04131325,3697.1,3696.5,0.270531]
[1736177838724,0.03728349,3696.7,3696.2,2.70547]
[1736177838950,0.04131325,3697.1,3696.2,2.70547]